Workbook

Sheet NSU
B1: Vilma Heinola | E1: 10.1.1999 Honkajoki
B2: SUPERPESIS | E2: Runkosarja | I2: Kärkilyönnit (KL), pesänvälit | Q2: Runkosarja | U2: Ylempi loppusarja | Z2: Alempi loppusarja | AG2: Arvo-ottelut ja mitalit
B3: Vuosi | C3: Sija | D3: Seura | E3: OTT | F3: KUN | G3: LÖI | H3: TOI | I3: KL | J3: 0 > 1 | K3: 1 > 2 | L3: 2 > 3 | M3: 3 > k | N3: KL-% | P3: LÖI | Q3: TOI | R3: L+T | S3: KL | U3: OTT | V3: KUN | W3: LÖI | X3: TOI | Y3: KL | Z3: OTT | AA3: KUN | AB3: LÖI | AC3: TOI | AD3: KL | AE3: IL | AF3: LL | AG3: Halli | AH3: K | AI3: H | AJ3: P
B4: 2015 | C4: 1. | D4: KaMa 2 | F4: suomensarja
B5: 2016 | C5: 5. | D5: Mailajuniorit 2 | F5: suomensarja
B6: 2016 | C6: 10. | D6: Mailajuniorit | F6: ykköspesis
B7: 2017 | C7: 2. | D7: Fera 2 | F7: ykköspesis
B8: 2018 | C8: 11. | D8: Fera 2 | F8: ykköspesis
B9: 2019 | C9: 2. | D9: Fera 2 | F9: suomensarja
B10: 2019 | C10: 1. | D10: PöU | F10: ykköspesis
B11: 2019 | C11: 7. | D11: Fera | E11: 1 | F11: 0 | G11: 2 | H11: 1 | I11: 5 | J11: 0 | K11: 0 | L11: 3 | M11: 2 | N11: 62.5 % | O11: 8
B12: 2020 | C12: 5. | D12: Pesäkarhut 2 | F12: ykköspesis
B13: 2021 | C13: 3. | D13: Pesäkarhut 2 | F13: ykköspesis
B14: Yhteensä | E14: =SUM(E4:E13) -> 1 | F14: 0 | G14: 2 | H14: 1 | I14: 5 | J14: 0 | K14: 0 | L14: 3 | M14: 2 | N14: =PRODUCT(I14/O14) -> 62.5 % | O14: =SUM(O4:O13) -> 8 | U14: =SUM(U4:U13) -> 0 | V14: 0 | W14: 0 | X14: 0 | Y14: 0 | Z14: 0 | AA14: 0 | AB14: 0 | AC14: 0 | AD14: 0 | AE14: 0 | AF14: 0 | AG14: 0 | AH14: 0 | AI14: 0 | AJ14: 0
B15: Pesispörssi | D15: =SUM(F14:H14)+((I14-F14-G14)/3)+(E14/3)+(AE14*25)+(AF14*25)+(AG14*10)+(AH14*25)+(AI14*20)+(AJ14*15) -> 4.3
B17: URA SUPERISSA | E17: OTT | F17: KUN | G17: LÖI | H17: TOI | I17: KL | K17: ka/L | L17: ka/T | M17: ka/KL | N17: K - % | P17: ENSIMMÄISET
B18: Runkosarja | E18: =PRODUCT(E14) -> 1 | F18: =PRODUCT(F14) -> 0 | G18: =PRODUCT(G14) -> 2 | H18: =PRODUCT(H14) -> 1 | I18: =PRODUCT(I14) -> 5 | K18: =PRODUCT((F18+G18)/E18) -> 2.00 | L18: =PRODUCT(H18/E18) -> 1.00 | M18: =PRODUCT(I18/E18) -> 5.00 | N18: =PRODUCT(N14) -> 62.5 % | O18: =PRODUCT(O14) -> 8 | P18: Ottelu | R18: 14.07. 2019 Fera - LaVe 2-0 (7-1, 11-0) | AB18: 1. ottelu | AD18: 20 v 6 kk 4 pv
B19: Ylempi loppusarja | P19: Lyöty | R19: 14.07. 2019 Fera - LaVe 2-0 (7-1, 11-0) | AB19: 1. ottelu | AD19: 20 v 6 kk 4 pv
B20: Alempi loppusarja | O20: 0 | P20: Tuotu | R20: 14.07. 2019 Fera - LaVe 2-0 (7-1, 11-0) | AB20: 1. ottelu | AD20: 20 v 6 kk 4 pv
B21: KAIKKI | E21: =SUM(E18:E20) -> 1 | F21: =SUM(F18:F20) -> 0 | G21: =SUM(G18:G20) -> 2 | H21: =SUM(H18:H20) -> 1 | I21: =SUM(I18:I20) -> 5 | K21: =PRODUCT((F21+G21)/E21) -> 2.00 | L21: =PRODUCT(H21/E21) -> 1.00 | M21: =PRODUCT(I21/E21) -> 5.00 | N21: =PRODUCT(I21/O21) -> 62.5 % | O21: =SUM(O18:O20) -> 8 | P21: Kunnari
B23: Seurat | D23: Mailajuniorit (2013), kasvattajaseura
D24: KaMa = Kankaanpään Maila (1958)
D25: Fera (1958)
D26: PöU = Pöytyän Urheilijat (1945)
D27: Pesäkarhut = Pesäkarhut (1985)

Sheet NYP,NSS
B1: Vilma Heinola | E1: 10.1.1999 Honkajoki
B2: YKKÖSPESIS | E2: Runkosarja | L2: Runkosarja TOP-10 | Q2: Jatkosarjat | X2: SUOMENSARJA | AA2: Runkosarja | AH2: Runkosarja TOP-10 | AM2: Jatkosarjat
B3: Vuosi | C3: Sija | D3: Seura | E3: OTT | F3: KUN | G3: LÖI | H3: TOI | I3: KL | J3: KL-% | L3: LÖI | M3: TOI | N3: L+T | O3: KL | Q3: OTT | R3: KUN | S3: LÖI | T3: TOI | U3: KL | V3: KL-% | X3: Vuosi | Y3: Sija | Z3: Seura | AA3: OTT | AB3: KUN | AC3: LÖI | AD3: TOI | AE3: KL | AF3: KL-% | AH3: LÖI | AI3: TOI | AJ3: L+T | AK3: KL | AM3: OTT | AN3: KUN | AO3: LÖI | AP3: TOI | AQ3: KL | AR3: KL-%
X4: 2015 | Y4: 1. | Z4: KaMa 2 | AA4: 9 | AB4: 2 | AC4: 5 | AD4: 24 | AE4: 51 | AF4: 75.0 % | AG4: 68 | AM4: 4 | AN4: 0 | AO4: 1 | AP4: 6 | AQ4: 18 | AR4: 62.1 % | AS4: 29
B5: 2016 | C5: 10. | D5: Mailajuniorit | E5: 18 | F5: 0 | G5: 9 | H5: 11 | I5: 74 | J5: 59.7 % | K5: 124
B6: 2017 | C6: 12. | D6: Mailajuniorit | E6: 20 | F6: 0 | G6: 3 | H6: 7 | I6: 73 | J6: 60.3 % | K6: 121
B7: 2018 | C7: 11. | D7: Fera 2 | E7: 22 | F7: 0 | G7: 8 | H7: 16 | I7: 102 | J7: 66.2 % | K7: 154
B8: 2019 | C8: 1. | D8: PöU | E8: 1 | F8: 0 | G8: 0 | H8: 0 | I8: 1 | J8: 25.0 % | K8: 4 | X8: 2019 | Y8: 2. | Z8: Fera 2 | AA8: 13 | AB8: 1 | AC8: 17 | AD8: 19 | AE8: 92 | AF8: 73.6 % | AG8: 125 | AM8: 7 | AN8: 1 | AO8: 9 | AP8: 11 | AQ8: 43 | AR8: 67.2 % | AS8: 64
B9: 2020 | C9: 5. | D9: Pesäkarhut 2 | E9: 13 | F9: 1 | G9: 12 | H9: 18 | I9: 55 | J9: 61.8 % | K9: 89
B10: 2021 | C10: 3. | D10: Pesäkarhut 2 | E10: 9 | F10: 0 | G10: 5 | H10: 5 | I10: 24 | J10: 64.9 % | K10: 37 | X10: 2021 | Y10: 3. | Z10: PK 3 | AA10: 1 | AB10: 0 | AC10: 2 | AD10: 2 | AE10: 6 | AF10: 100.0 % | AG10: 6
B11: YHTEENSÄ | E11: =SUM(E4:E10) -> 83 | F11: =SUM(F4:F10) -> 1 | G11: =SUM(G4:G10) -> 37 | H11: =SUM(H4:H10) -> 57 | I11: =SUM(I4:I10) -> 329 | J11: =PRODUCT(I11/K11) -> 62.2 % | K11: =SUM(K4:K10) -> 529 | Q11: =SUM(Q4:Q10) -> 0 | R11: =SUM(R4:R10) -> 0 | S11: =SUM(S4:S10) -> 0 | T11: =SUM(T4:T10) -> 0 | U11: =SUM(U4:U10) -> 0 | V11: 0.0 % | W11: =SUM(W4:W10) -> 0 | X11: YHTEENSÄ | AA11: =SUM(AA4:AA10) -> 23 | AB11: =SUM(AB4:AB10) -> 3 | AC11: =SUM(AC4:AC10) -> 24 | AD11: =SUM(AD4:AD10) -> 45 | AE11: =SUM(AE4:AE10) -> 149 | AF11: =PRODUCT(AE11/AG11) -> 74.9 % | AG11: =SUM(AG4:AG10) -> 199 | AM11: =SUM(AM4:AM10) -> 11 | AN11: =SUM(AN4:AN10) -> 1 | AO11: =SUM(AO4:AO10) -> 10 | AP11: =SUM(AP4:AP10) -> 17 | AQ11: =SUM(AQ4:AQ10) -> 61 | AR11: =PRODUCT(AQ11/AS11) -> 65.6 % | AS11: =SUM(AS4:AS10) -> 93
B13: KAIKKI OTTELUT | E13: OTT | F13: KUN | G13: LÖI | H13: TOI | I13: KL | J13: KL-% | L13: ka/L | M13: ka/T | N13: ka/l+t | O13: ka/kl | R13: Seurat | T13: Mailajuniorit (2013), kasvattajaseura
B14: SUPERPESIS | E14: 1 | F14: 0 | G14: 2 | H14: 1 | I14: 5 | J14: 62.5 % | K14: =PRODUCT(I14/J14) -> 8 | L14: =PRODUCT((F14+G14)/E14) -> 2.00 | M14: =PRODUCT(H14/E14) -> 1.00 | N14: =PRODUCT((F14+G14+H14)/E14) -> 3.00 | O14: =PRODUCT(I14/E14) -> 5.00 | T14: KaMa = Kankaanpään Maila (1958)
B15: YKKÖSPESIS | E15: =PRODUCT(E11+Q11) -> 83 | F15: =PRODUCT(F11+R11) -> 1 | G15: =PRODUCT(G11+S11) -> 37 | H15: =PRODUCT(H11+T11) -> 57 | I15: =PRODUCT(I11+U11) -> 329 | J15: =PRODUCT(I15/K15) -> 62.2 % | K15: =PRODUCT(K11+W11) -> 529 | L15: =PRODUCT((F15+G15)/E15) -> 0.46 | M15: =PRODUCT(H15/E15) -> 0.69 | N15: =PRODUCT((F15+G15+H15)/E15) -> 1.14 | O15: =PRODUCT(I15/E15) -> 3.96 | T15: Fera (1958)
B16: SUOMENSARJA | E16: =PRODUCT(AA11+AM11) -> 34 | F16: =PRODUCT(AB11+AN11) -> 4 | G16: =PRODUCT(AC11+AO11) -> 34 | H16: =PRODUCT(AD11+AP11) -> 62 | I16: =PRODUCT(AE11+AQ11) -> 210 | J16: =PRODUCT(I16/K16) -> 71.9 % | K16: =PRODUCT(AG11+AS11) -> 292 | L16: =PRODUCT((F16+G16)/E16) -> 1.12 | M16: =PRODUCT(H16/E16) -> 1.82 | N16: =PRODUCT((F16+G16+H16)/E16) -> 2.94 | O16: =PRODUCT(I16/E16) -> 6.18 | T16: PöU = Pöytyän Urheilijat (1945)
B17: YHTEENSÄ | E17: =SUM(E14:E16) -> 118 | F17: =SUM(F14:F16) -> 5 | G17: 73 | H17: 120 | I17: 544 | J17: =PRODUCT(I17/K17) -> 65.6 % | K17: =SUM(K14:K16) -> 829 | L17: =PRODUCT((F17+G17)/E17) -> 0.66 | M17: =PRODUCT(H17/E17) -> 1.02 | N17: =PRODUCT((F17+G17+H17)/E17) -> 1.68 | O17: =PRODUCT(I17/E17) -> 4.61 | T17: Pesäkarhut = Pesäkarhut (1985)
